bitfinex/quotes_ETHUSD_20220215
["timestamp","ask_amount","ask_price","bid_price","bid_amount"]
[1644948643692,0.80616,3101.6,3100.6,1.61214]
[1644948643693,0.80616,3101.6,3100.8,0.00396195]
[1644948643893,1.10616,3101.6,3100.8,0.00396195]
[1644948644293,1.10616,3101.6,3101.2,0.84249764]
[1644948644495,1.10616,3101.6,3101.3,0.00396195]
[1644948644931,1.9123002,3101.6,3101.3,0.00396195]
[1644948645536,1.9123002,3101.6,3101.3,0.00677824]
[1644948645731,1.6123002,3101.6,3101.3,0.00677824]
[1644948646333,0.8061402,3101.6,3101.3,0.00677824]
[1644948646532,0.8061402,3101.6,3101.3,0.00396195]
[1644948646734,0.8061402,3101.6,3101.3,0.00677824]
[1644948647733,0.8061402,3101.6,3101.3,0.00396195]
[1644948647934,0.8061402,3101.6,3101.3,0.00677824]
[1644948648133,6.3662478,3101.8,3101.3,0.00677824]
[1644948648988,6.3662478,3101.8,3101.3,0.00396195]
[1644948649191,7.1723478,3101.8,3101.4,0.00281624]
[1644948649390,7.9784778,3101.8,3101.4,0.00281624]
[1644948649791,7.97035961,3101.8,3101.4,0.00281624]
[1644948649989,7.8837853,3101.8,3101.3,0.00396195]
[1644948650187,0.806117,3101.7,3101.3,0.00396195]
[1644948650389,0.806117,3101.7,3101.4,0.00281621]
[1644948651392,0.806117,3101.7,3101.3,0.00396195]
[1644948651589,0.806117,3101.7,3101.4,0.00281624]
[1644948652437,0.806117,3101.7,3101.3,0.00396195]
[1644948652836,0.806117,3101.7,3101.4,0.00281624]
[1644948653636,0.806117,3101.7,3101.3,0.00396195]
[1644948653836,0.806117,3101.7,3101.4,0.00281624]
[1644948654941,0.806117,3101.7,3101.3,0.00396195]
[1644948655139,0.806117,3101.7,3101.4,0.00281624]
[1644948656040,0.806117,3101.7,3101.3,0.00396195]
[1644948656283,0.806117,3101.7,3101.4,0.00281624]
[1644948657283,0.806117,3101.7,3101.3,0.00396195]
[1644948657485,0.806117,3101.7,3101.4,0.00281624]
[1644948658485,0.806117,3101.7,3101.3,0.00396195]
[1644948658689,0.806117,3101.7,3101.4,0.00281624]
[1644948659689,0.806117,3101.7,3101.3,0.00396195]
[1644948659935,1.1060817,3101.6,3101.4,0.00281624]
[1644948660734,0.29711083,3101.6,3101.4,0.00281624]
[1644948660935,0.29711083,3101.6,3101.3,0.00396195]
[1644948661134,5.5602,3101.8,3101.3,0.00677821]
[1644948661335,0.88270745,3101.7,3101.4,0.48194449]
[1644948661534,0.88270745,3101.7,3101.5,0.00396195]
[1644948661733,0.80612,3101.6,3101.5,0.00396195]
[1644948661933,1.6122017,3101.6,3101.5,0.48193595]
[1644948662137,1.9122017,3101.6,3101.5,0.4858979]
[1644948663133,2.79526151,3101.6,3101.5,0.4858979]
[1644948663788,1.6122017,3101.6,3101.5,0.4858979]
[1644948666987,0.8060817,3101.6,3101.5,0.4858979]
[1644948667288,1.69400436,3101.6,3101.5,0.4858979]
[1644948671181,2.45,3101.5,3101.1,0.8394602]
[1644948671381,0.8060817,3101.6,3101.1,0.8394602]
[1644948671587,5.5602,3101.8,3101.7,0.85114224]
[1644948671984,4.338,3101.8,3101.7,0.85114224]
[1644948675036,4.338,3101.8,3100.9,1.612]
[1644948675238,4.338,3101.8,3100.8,1.3]
[1644948675436,4.338,3101.8,3100.8,0.3]
[1644948675639,4.338,3101.8,3101.2,0.00281995]
[1644948675836,1.1321,3101.7,3101.2,0.00281995]
[1644948676235,1.1321,3101.7,3101.3,0.9460175]
[1644948676436,5.44415,3101.8,3101.3,0.9460175]
[1644948676735,0.80622,3101.6,3101.3,0.9460175]
[1644948676938,0.80616,3101.5,3101.3,0.9460175]
[1644948677236,1.10616,3101.5,3101.3,0.9460175]
[1644948677635,1.91232,3101.5,3101.3,0.9460175]
[1644948677837,1.1061415,3101.5,3101.3,0.9460175]
[1644948678036,0.8061415,3101.5,3101.3,0.9460175]
[1644948679387,4.638,3101.8,3101.3,0.9460175]
[1644948679587,1.61228,3101.6,3101.3,0.9460175]
[1644948680789,2.418395,3101.6,3101.3,0.9460175]
[1644948680990,4.638,3101.8,3101.6,1.46603484]
[1644948682290,3.69966442,3101.7,3101.6,1.46603484]
[1644948682544,3.69966442,3101.7,3100.5,0.61270338]
[1644948682545,1.67233516,3101.6,3100.5,0.61270338]
[1644948682742,5.64818578,3101.5,3100.4,0.61270338]
[1644948682949,5.64818578,3101.5,3101.2,1.993e-05]
[1644948682950,20.52719312,3101.4,3101.2,1.993e-05]
[1644948683144,24.45888252,3101.3,3101.2,1.993e-05]
[1644948683347,34.7495594,3101.3,3101.2,1.993e-05]
[1644948683744,34.7495594,3101.3,3100.1,0.61270338]
[1644948683745,34.4495594,3101.3,3100.1,0.61270338]
[1644948684044,0.80647,3100.7,3100.1,0.61270338]
[1644948684245,0.80647,3100.7,3100.2,0.8383039]
[1644948684444,0.80647,3100.6,3100.2,0.8383039]
[1644948685043,1.61292,3100.6,3100.2,0.8383039]
[1644948685445,0.8065,3100.5,3100.2,0.8383039]
[1644948685645,0.8065,3100.5,3099.9,0.61270338]
[1644948686046,0.8065,3100.5,3100.0,0.00394392]
[1644948686287,0.80648,3100.4,3100.0,0.00394392]
[1644948686488,0.8065,3100.3,3100.0,0.00394392]
[1644948687585,2.4194989,3100.3,3100.0,0.0067644]
[1644948687787,1.613,3100.3,3100.0,0.0067644]
[1644948688589,1.6130037,3100.2,3099.7,0.00394392]
[1644948688787,1.61311,3100.2,3100.0,0.00282048]
[1644948688990,0.13819996,3100.1,3100.0,0.00282048]
[1644948689586,2.13890851,3100.1,3100.0,0.00282048]
[1644948689787,2.13890851,3100.1,3099.5,0.00394392]
[1644948690040,1.61332,3100.0,3099.5,0.00394392]
[1644948690240,1.61332,3100.0,3099.9,0.00282053]
[1644948690842,5.91296203,3100.0,3099.9,0.00282053]
[1644948691047,0.80664,3099.9,3099.6,0.40692175]
[1644948691242,0.80664,3099.9,3099.8,0.00282058]
[1644948691441,4.23661794,3099.9,3099.8,0.00282058]
[1644948692243,4.23661794,3099.9,3099.7,0.00394392]
[1644948692443,5.04326084,3099.9,3099.7,0.00164138]
[1644948692651,1.6132829,3099.9,3099.7,0.00164138]
[1644948692844,2.4199429,3099.9,3099.7,0.0055853]
[1644948693047,2.4199429,3099.9,3099.8,0.40693153]
[1644948693447,2.4199429,3099.9,3099.8,0.00394392]
[1644948693699,2.4199429,3099.9,3099.4,1.19257996]
[1644948693700,5.84541608,3099.9,3099.7,0.00164138]
[1644948693899,2.4199429,3099.9,3099.7,0.00164138]
[1644948694300,2.4199429,3099.9,3099.7,0.41193028]
[1644948694498,2.4199429,3099.9,3099.7,0.00164138]
[1644948694697,2.4199429,3099.9,3099.7,0.00394392]
[1644948694896,2.4199429,3099.9,3099.6,0.00282382]
[1644948695296,2.4199429,3099.9,3099.6,0.40907811]
[1644948695497,2.4199429,3099.9,3099.6,0.41302203]
[1644948695696,0.3,3099.8,3099.7,0.00394392]
[1644948695897,0.3,3099.8,3099.7,0.41019821]
[1644948696501,0.3,3100.0,3099.7,0.41019821]
[1644948696803,0.3,3100.0,3099.8,0.41019821]
[1644948696999,0.3,3100.0,3099.8,0.40625429]
[1644948697200,0.3,3100.0,3099.8,0.00394392]
[1644948697438,0.3,3100.0,3099.7,0.40907808]
[1644948697439,0.3,3100.0,3099.9,0.40625429]
[1644948697637,0.3,3100.0,3099.7,0.413022]
[1644948697838,0.3,3100.0,3099.8,0.40625429]
[1644948698036,0.3,3100.0,3099.8,0.41019821]
[1644948698238,4.1256,3100.1,3099.9,0.40625429]
[1644948698441,8.3054,3100.2,3100.0,3.22289067]
[1644948698640,8.3054,3100.2,3100.1,0.40625429]
[1644948699238,8.3054,3100.2,3099.9,0.40625429]
[1644948699440,8.3054,3100.2,3100.0,1.13624172]
[1644948699741,8.3054,3100.2,3100.1,0.4055206]
[1644948701291,6.83883387,3100.2,3100.1,0.4055206]
[1644948710893,6.83883387,3100.2,3100.0,1.13906535]
[1644948711197,6.83883387,3100.2,3100.1,0.37872936]
[1644948712448,6.83883387,3100.2,3100.1,1.37872936]
[1644948721240,6.83883387,3100.2,3100.1,1.40158464]
[1644948721439,1.6128694,3100.4,3100.1,1.40158464]
[1644948721638,1.6128694,3100.4,3100.2,0.38267328]
[1644948721840,1.6128694,3100.4,3100.3,0.37872936]
[1644948722039,1.6128694,3100.4,3100.3,0.38267328]
[1644948724088,1.51554803,3100.4,3100.3,0.38267328]
[1644948726498,2.5281183,3100.4,3100.3,0.40559797]
[1644948726695,2.5281183,3100.4,3100.3,0.02686861]
[1644948726696,1.81901027,3100.4,3100.3,0.02686861]
[1644948727095,1.81901027,3100.4,3100.3,0.38071902]
[1644948727297,1.81901027,3100.4,3100.2,2.353e-05]
[1644948727298,6.95,3100.3,3100.2,2.353e-05]
[1644948727555,6.95,3100.3,3099.3,0.61270338]
[1644948727556,4.10805005,3099.9,3099.3,0.61270338]
[1644948727757,1.18154005,3099.9,3099.3,0.61270338]
[1644948728152,1.18154005,3099.9,3099.2,1.61928156]
[1644948728652,2.4198515,3099.8,3099.2,1.61928156]
[1644948728852,3.60146005,3099.9,3099.2,1.61928156]
[1644948729253,3.60146005,3099.9,3099.2,0.61270338]
[1644948729653,4.11773713,3099.9,3099.2,0.61270338]
[1644948729853,0.80664,3099.6,3099.2,0.61270338]
[1644948730255,1.6132742,3099.7,3099.2,0.61270338]
[1644948731293,1.6132424,3099.6,3099.2,0.61270338]
[1644948731691,1.6132424,3099.6,3099.1,1.71247184]
[1644948732190,1.6132424,3099.6,3099.2,0.00282403]
[1644948732790,0.80665,3099.5,3099.2,0.00282403]
[1644948732990,0.80665,3099.5,3099.1,1.71247184]
[1644948733390,1.6132835,3099.6,3099.2,0.00282403]
[1644948733590,1.6132994,3099.8,3099.2,0.00282403]
[1644948733991,0.80662,3099.7,3099.2,0.00282403]
[1644948734191,0.8066107,3099.6,3099.1,1.71247184]
[1644948734591,1.61322,3099.7,3099.3,0.00282398]
[1644948735042,0.8066,3099.7,3099.3,0.00282398]
[1644948735442,0.8066,3099.7,3099.1,1.71247184]
[1644948735841,1.6131831,3099.7,3099.3,0.00282398]
[1644948736038,1.6131931,3099.7,3099.3,0.00282398]
[1644948736239,0.80663,3099.6,3099.3,0.00282398]
[1644948736639,0.80661,3099.7,3099.1,1.71247184]
[1644948736839,0.80661,3099.7,3099.3,0.002824]
[1644948737038,0.8065872,3099.7,3099.3,0.002824]
[1644948737845,0.8065872,3099.7,3099.1,1.71247184]
[1644948738041,0.8065872,3099.7,3099.3,0.00282398]
[1644948738692,0.80662,3099.6,3099.3,0.00282398]
[1644948738992,0.80662,3099.6,3099.1,1.71247184]
[1644948739393,0.80662,3099.6,3099.3,0.002824]
[1644948739793,1.61326,3099.6,3099.3,0.002824]
[1644948739992,1.6132849,3099.6,3099.3,0.002824]
[1644948740192,1.6132849,3099.6,3099.0,0.61270338]
[1644948740594,1.6132849,3099.6,3099.3,0.002824]
[1644948740994,1.61333,3099.5,3099.3,0.002824]
[1644948741194,2.4200194,3099.5,3099.3,0.002824]
[1644948741394,0.95358197,3099.5,3099.0,0.61270338]
[1644948741594,0.14692197,3099.5,3098.9,0.61270338]
[1644948741794,0.14692197,3099.5,3099.2,0.00282403]
[1644948742194,1.1889,3099.7,3099.2,0.00282403]
[1644948742638,1.1889,3099.7,3099.0,0.61270338]
[1644948743041,1.1889,3099.7,3099.3,1.17101173]
[1644948743241,4.3738,3099.9,3099.4,3.1929906]
[1644948744341,4.3738,3099.9,3099.5,0.8092539]
[1644948744640,4.3738,3099.9,3099.6,3.3338036]
[1644948744840,4.3738,3099.9,3099.7,0.00390552]
[1644948745139,4.3738,3099.9,3099.8,0.97021721]
[1644948745542,4.3738,3099.9,3099.8,0.97412273]
[1644948746691,4.3738,3099.9,3099.8,4.37331627]
[1644948747492,4.3738,3099.9,3099.8,4.69234977]
[1644948747693,4.3738,3099.9,3099.8,6.30496977]
[1644948747894,0.25,3100.7,3099.8,6.30496977]
[1644948748101,7.2294123,3101.1,3100.0,1.41888338]
[1644948748295,1.03911261,3101.0,3100.3,0.80611]
[1644948748495,1.03911261,3101.0,3100.4,3.80449132]
[1644948748696,1.03911261,3101.0,3100.5,0.7840335]
[1644948748896,1.03911261,3101.0,3100.6,5.21320928]
[1644948749098,7.0562,3101.2,3100.7,0.3190335]
[1644948749295,7.0562,3101.2,3100.7,2.9312335]
[1644948749495,1.03902151,3101.1,3100.8,3.21290252]
[1644948749695,1.03902151,3101.1,3100.9,0.3190335]
[1644948750147,1.03902151,3101.1,3100.7,0.3190335]
[1644948750344,1.03902151,3101.1,3100.6,4.14195044]
[1644948750345,1.03902151,3101.1,3100.8,0.3190335]
[1644948750543,1.03902151,3101.1,3100.9,0.3190335]
[1644948750746,1.03902151,3101.1,3101.0,0.3190335]
[1644948751845,1.03902151,3101.1,3100.8,0.3190335]
[1644948752044,1.03902151,3101.1,3100.9,0.3190335]
[1644948752245,1.03902151,3101.1,3101.0,0.3190335]
[1644948752644,1.03902151,3101.1,3100.8,0.3190335]
[1644948753045,1.03902151,3101.1,3100.9,0.3190335]
[1644948753247,1.03902151,3101.1,3101.0,0.3190335]
[1644948753446,7.0562,3101.2,3101.0,0.3190335]
[1644948753691,7.0562,3101.2,3101.1,0.3190335]
[1644948754294,7.0562,3101.2,3100.9,0.3190335]
[1644948754295,8.09441076,3101.2,3100.9,0.3190335]
[1644948754593,3.9918,3101.3,3100.7,2.56205368]
[1644948754594,3.9918,3101.3,3101.0,0.3190335]
[1644948754796,3.9918,3101.3,3101.1,0.3190335]
[1644948754993,3.9918,3101.3,3101.2,0.3190335]
[1644948755896,3.9918,3101.3,3101.2,1.22590605]
[1644948756094,3.9918,3101.3,3101.2,4.47452338]
[1644948756494,5.02923644,3101.3,3101.2,2.03190605]
[1644948756695,3.9918,3101.3,3101.2,2.03190605]
[1644948756994,3.9918,3101.3,3101.2,1.22590605]
[1644948757297,5.02924037,3101.3,3101.2,1.22590605]
[1644948757543,5.02924037,3101.3,3101.2,0.90687255]
[1644948758144,5.02876088,3101.3,3101.0,1.0]
[1644948758345,3.9918,3101.3,3101.1,0.32586999]
[1644948758548,3.9918,3101.3,3101.2,0.32586999]
[1644948758745,3.9918,3101.3,3101.0,0.32586999]
[1644948758946,3.9918,3101.3,3101.1,0.32586999]
[1644948759147,3.9918,3101.3,3101.2,0.88658022]
[1644948759347,3.9918,3101.3,3101.2,1.21245021]
[1644948760349,3.9918,3101.3,3101.2,0.32586999]
[1644948760548,3.9918,3101.3,3100.7,1.2711]
[1644948760850,3.9918,3101.3,3100.8,0.32586165]
[1644948760851,1.03646121,3101.2,3100.8,0.32586165]
[1644948761488,3.9918,3101.3,3100.7,0.32586165]
[1644948761691,3.9918,3101.3,3100.8,0.32586165]
[1644948761889,1.0364661,3101.2,3100.9,0.32586165]
[1644948762088,3.9918,3101.3,3100.9,0.32586165]
[1644948762288,1.03646362,3101.2,3100.9,0.32586165]
[1644948762888,3.9918,3101.3,3100.9,0.32586165]
[1644948763087,3.9918,3101.3,3100.5,1.0]
[1644948763088,1.03625567,3101.2,3100.1,6.52166365]
[1644948763288,1.03625567,3101.2,3100.2,1.32607966]
[1644948763492,1.03625567,3101.2,3100.4,0.80623]
[1644948763692,1.03625567,3101.2,3100.5,0.32607966]
[1644948764945,1.03625567,3101.2,3100.9,1.0552189]
[1644948765744,1.03625567,3101.2,3100.5,1.61241]
[1644948765943,1.03625567,3101.2,3100.3,1.0]
[1644948765944,0.00090126,3100.9,3100.6,0.3261483]
[1644948766145,0.00090126,3100.9,3100.7,0.3261483]
[1644948766350,0.00090126,3100.9,3100.1,0.47365365]
[1644948766545,0.00090126,3100.9,3100.2,0.32627021]
[1644948766946,0.80635,3100.8,3100.6,1.03180797]
[1644948767145,0.80635,3100.8,3100.0,0.00282372]
[1644948767348,1.03651972,3100.7,3100.0,0.00282372]
[1644948767547,1.81841972,3100.7,3100.0,0.00282372]
[1644948767749,1.03651972,3100.6,3100.0,0.00282372]
[1644948767947,1.84303972,3100.6,3100.0,0.00282372]
[1644948768148,1.84303972,3100.6,3100.0,0.88179704]
[1644948768149,1.03651972,3100.5,3100.0,0.88179704]
[1644948768352,1.03651972,3100.5,3100.0,0.8846207]
[1644948768790,1.84308052,3100.5,3100.0,0.8846207]
[1644948768993,1.03651972,3100.4,3100.0,0.8846207]
[1644948769190,1.84304972,3100.4,3100.0,0.88179704]
[1644948769390,1.84304972,3100.4,3100.0,0.88452537]
[1644948769391,1.03651972,3100.3,3100.0,0.88452537]
[1644948769791,5.523366,3100.6,3100.0,0.88452537]
[1644948769991,2.64946481,3100.5,3100.0,0.88452537]
[1644948770191,1.84299051,3100.4,3100.0,0.88452537]
[1644948770392,0.80647,3100.4,3100.1,0.32647421]
[1644948770590,0.80647,3100.4,3100.0,0.88452537]
[1644948770991,0.80505696,3100.4,3100.0,0.88452537]
[1644948771191,1.61303,3100.3,3100.0,0.88452537]
[1644948771594,1.61303,3100.3,3100.0,0.88179704]
[1644948771792,0.80651,3100.3,3100.0,0.00272833]
[1644948772193,0.8065171,3100.2,3100.0,0.00272833]
[1644948772441,0.80651,3100.3,3100.0,0.00272833]
[1644948772842,0.80651,3100.3,3099.8,0.33014001]
[1644948773043,0.80651,3100.3,3100.0,0.0025969]
[1644948773241,0.80651,3100.3,3100.1,0.91417582]
[1644948773843,0.80651,3100.3,3100.0,0.0025969]
[1644948774043,0.80651,3100.3,3099.4,0.32625598]
[1644948774245,0.80651,3100.3,3099.5,0.00390312]
[1644948774441,0.80651,3100.3,3099.6,0.32625598]
[1644948774442,1.61301,3100.3,3099.6,0.32625598]
[1644948774645,0.80651,3100.3,3099.6,0.32625598]
[1644948774843,2.05339488,3100.2,3099.7,0.3301591]
[1644948775044,0.80658,3100.2,3099.8,0.32625598]
[1644948775242,0.80658,3100.2,3099.8,0.3301591]
[1644948775443,0.80658,3100.2,3099.6,0.00390312]
[1644948775642,0.80658,3100.2,3099.7,0.32630189]
[1644948775843,1.03661516,3100.1,3099.8,0.00390312]
[1644948776300,0.80659,3100.0,3099.6,0.00390312]
[1644948776492,0.80659,3100.0,3099.7,0.32632361]
[1644948776691,0.80659,3100.0,3099.8,0.00282009]
[1644948776899,0.80659,3100.0,3099.8,0.33304682]
[1644948777092,0.80659,3100.0,3099.8,0.00282009]
[1644948777493,0.80659,3100.0,3099.8,0.00672321]
[1644948777695,0.96199449,3100.2,3099.8,0.00390312]
[1644948777894,1.03665081,3100.1,3099.7,0.00282011]
[1644948778098,0.96199449,3100.2,3099.7,0.00282011]
[1644948778293,0.96199449,3100.2,3099.7,0.33287346]
[1644948778493,0.96199449,3100.2,3099.8,0.33005335]
[1644948778692,1.1891,3100.3,3100.0,1.07463888]
[1644948778897,4.2866,3100.4,3100.0,1.07463888]
[1644948779195,5.09307,3100.4,3100.1,0.32612112]
[1644948780043,4.2866,3100.4,3100.1,0.32612112]
[1644948780947,4.2866,3100.4,3100.1,3.55371545]
[1644948781143,4.2866,3100.4,3100.2,0.32612112]
[1644948781344,4.2866,3100.4,3100.2,1.32612112]
[1644948781543,4.2866,3100.4,3100.3,0.32612112]
[1644948781945,1.215,3100.8,3100.3,1.13237112]
[1644948782243,1.215,3100.8,3100.4,0.32612112]
[1644948782443,1.215,3100.8,3100.5,0.9165525]
[1644948782643,1.215,3100.8,3100.6,0.32612112]
[1644948782842,7.17750126,3100.9,3100.6,0.32612112]
[1644948783442,1.03722786,3100.8,3100.6,0.32612112]
[1644948783695,1.03722786,3100.8,3100.5,1.7228125]
[1644948783898,1.03722786,3100.8,3100.5,0.9165525]
[1644948784401,3.9699,3101.2,3100.7,3.1]
[1644948784603,3.9699,3101.2,3100.8,3.82614997]
[1644948784802,0.25416858,3102.1,3101.1,0.8059083]
[1644948785000,0.25416858,3102.1,3101.0,1.6118165]
[1644948785001,1.02962036,3102.0,3101.2,0.32614997]
[1644948785197,1.02962036,3102.0,3101.0,2.0768165]
[1644948785198,0.01127454,3101.8,3101.3,1.13208997]
[1644948785400,1.02962036,3101.7,3101.3,0.80594]
[1644948785597,1.02962036,3101.7,3101.1,1.80602]
[1644948786003,1.02962036,3101.7,3101.1,0.80602]
[1644948786199,1.02962036,3101.6,3101.1,2.418096]
[1644948786398,1.02962036,3101.5,3101.2,1.13947926]
[1644948786598,1.02962036,3101.4,3101.3,0.93873135]
[1644948787102,0.00416858,3101.9,3101.4,0.50614877]
[1644948787300,1.02917027,3101.8,3101.4,0.50614877]
[1644948787545,1.02917027,3101.8,3101.4,2.11810877]
[1644948788144,1.02917027,3101.8,3101.4,0.50614877]
[1644948788345,1.32917027,3101.8,3101.4,0.50614877]
[1644948788545,1.02917027,3101.7,3101.4,0.50614877]
[1644948788944,0.85044142,3101.6,3101.4,0.50614877]
[1644948789146,1.02917027,3101.5,3101.4,0.50614877]
[1644948789344,2.32917027,3101.5,3101.4,0.50614877]
[1644948789752,6.95,3101.4,3100.6,0.80621]
[1644948789950,0.00152242,3100.6,3100.0,3.22765825]
[1644948790149,0.00152242,3100.6,3100.1,0.32448788]
[1644948790549,0.00152242,3100.6,3100.2,0.32448788]
[1644948790750,0.00152242,3100.6,3100.3,0.32448788]
[1644948790949,0.00152242,3100.6,3100.0,0.32448788]
[1644948791194,0.00152242,3100.6,3100.0,0.32721271]
[1644948791793,0.00152242,3100.6,3100.1,0.32448788]
[1644948792194,0.00152242,3100.6,3100.2,0.32448788]
[1644948792497,0.00152242,3100.6,3100.3,0.32448788]
[1644948792693,0.00152242,3100.6,3100.0,0.00256379]
[1644948793092,0.00152242,3100.6,3100.0,0.32718515]
[1644948793296,1.03069269,3100.6,3100.1,0.32462136]
[1644948793494,1.02917027,3100.5,3100.2,0.32462136]
[1644948793695,1.02917027,3100.4,3100.0,0.00256379]
[1644948793896,0.00152242,3100.6,3100.0,0.32716199]
[1644948794099,1.04069692,3100.6,3100.1,0.3245982]
[1644948794297,1.04069692,3100.6,3100.2,0.3245982]
[1644948794497,1.04069692,3100.6,3099.8,0.00390312]
[1644948794498,1.04069692,3100.6,3100.3,0.3245982]
[1644948794697,1.04069692,3100.6,3100.4,0.32451798]
[1644948794945,1.04069692,3100.6,3100.0,4.0544952]
[1644948795150,1.04069692,3100.6,3100.1,0.32444166]
[1644948795151,0.00152242,3100.6,3100.1,0.32444166]
[1644948795345,0.00152242,3100.6,3100.2,0.32444166]
[1644948795548,0.00152242,3100.6,3100.3,0.32444166]
[1644948795745,0.00152242,3100.6,3100.4,0.32444166]
[1644948795947,0.00152242,3100.6,3100.0,1.86189712]
[1644948796147,0.00152242,3100.6,3100.1,0.32455317]
[1644948796945,0.00152242,3100.6,3100.1,3.5762603]
[1644948797148,0.00152242,3100.6,3100.2,0.32455317]
[1644948797945,0.00152242,3100.6,3100.3,0.32455317]
[1644948798146,0.00152242,3100.6,3100.4,0.32455317]
[1644948798345,0.00152242,3100.6,3100.5,0.32455317]
[1644948798547,0.00152242,3100.6,3100.0,0.0025787]
[1644948798804,1.09626486,3100.5,3100.0,0.0025787]
[1644948798999,0.00152242,3100.6,3100.0,0.0025787]
[1644948799000,1.03939119,3100.4,3100.0,0.0025787]
[1644948799199,1.03939119,3100.3,3100.0,0.32462952]
[1644948799402,0.00152242,3100.6,3100.1,0.32462952]
[1644948799602,0.00152242,3100.6,3100.0,0.00257647]
[1644948799801,1.0411526,3100.6,3100.0,0.00257647]
[1644948800001,0.80647,3100.5,3100.0,0.00257647]
[1644948800202,1.03963018,3100.4,3100.0,0.00257647]
[1644948800408,1.03963018,3100.4,3099.8,0.32476693]
[1644948800802,1.03963018,3100.4,3100.0,0.00257647]
[1644948801706,1.03963018,3100.3,3099.9,0.32476693]
[1644948801906,1.03963018,3100.2,3100.0,0.00257645]
[1644948802107,0.00152242,3100.6,3100.0,0.00257645]
[1644948802307,0.00152242,3100.6,3100.1,0.80623]
[1644948802548,0.00152242,3100.6,3100.2,4.40796854]
[1644948802741,0.00152242,3100.6,3100.3,0.32476693]
[1644948803341,0.00152242,3100.6,3100.4,0.32476693]
[1644948803542,0.00152242,3100.6,3100.0,0.80893682]
[1644948803742,0.00152242,3100.6,3100.1,0.32461329]
[1644948803943,0.00152242,3100.6,3100.2,0.32461329]
[1644948804142,0.00152242,3100.6,3100.3,0.32461329]
[1644948804342,0.00152242,3100.6,3100.4,0.32461329]
[1644948804543,0.00152242,3100.6,3100.0,0.32719009]
[1644948804743,1.04104955,3100.6,3100.1,0.32462676]
[1644948804942,1.04104955,3100.6,3100.2,0.32462676]
[1644948805141,1.03952713,3100.5,3100.3,0.32462676]
[1644948805344,0.00152242,3100.6,3100.4,0.32462676]
[1644948805547,0.00152242,3100.6,3100.0,0.00257682]
[1644948805745,0.00152242,3100.6,3100.0,1.66803117]
[1644948805944,1.04147941,3100.6,3100.1,0.32467542]
[1644948806193,1.04147941,3100.6,3100.2,0.80631]
[1644948806392,1.04147941,3100.6,3100.3,0.32467542]
[1644948806594,1.03995699,3100.5,3100.3,0.32467542]
[1644948806794,0.00152242,3100.6,3100.3,0.32467542]
[1644948808097,0.00152242,3100.6,3100.4,0.32467542]
[1644948808294,0.00152242,3100.6,3100.5,0.32467542]
[1644948808495,0.88025773,3100.6,3100.1,0.32467542]
[1644948808696,1.04041153,3100.5,3100.1,0.32467542]
[1644948809097,0.00152242,3100.6,3100.1,0.32467542]
[1644948810647,0.00152242,3100.6,3100.2,0.32467542]
[1644948810844,1.0421151,3100.6,3100.3,0.32467542]
[1644948811044,1.0421151,3100.6,3100.4,0.32467542]
[1644948811249,1.0421151,3100.6,3099.9,1.61275]
[1644948811446,1.0421151,3100.6,3100.0,0.32733052]
[1644948811846,1.8485051,3100.6,3100.0,0.32733052]
[1644948812050,1.04059268,3100.5,3100.0,1.13368052]
[1644948812247,0.00152242,3100.6,3100.1,0.3247537]
[1644948812447,0.00152242,3100.6,3100.2,0.3247537]
[1644948812649,0.00152242,3100.6,3100.3,0.3247537]
[1644948812848,0.00152242,3100.6,3100.4,0.3247537]
[1644948813047,0.00152242,3100.6,3100.5,0.3247537]
[1644948813251,1.0409601,3100.6,3100.5,0.3247537]
[1644948813449,1.0409601,3100.6,3100.1,0.3247537]
[1644948813690,1.0409601,3100.6,3100.2,0.3247537]
[1644948813691,1.04063829,3100.5,3100.2,0.3247537]
[1644948813891,0.00032181,3100.6,3100.3,0.3247537]
[1644948814190,0.00032181,3100.6,3100.4,0.3247537]
[1644948814392,0.00032181,3100.6,3100.0,0.00257686]
[1644948814592,0.00032181,3100.6,3100.2,0.80632]
[1644948814793,0.00032181,3100.6,3100.3,0.3247537]
[1644948817094,0.00032181,3100.6,3100.1,0.3247537]
[1644948817294,1.04094256,3100.6,3100.2,0.3247537]
[1644948817551,1.04094256,3100.6,3100.3,0.3247537]
[1644948817752,1.04094256,3100.6,3100.4,0.3247537]
[1644948818054,0.00032181,3100.6,3100.5,0.3247537]
[1644948818250,1.04125601,3100.6,3100.5,0.3247537]
[1644948818453,1.04125601,3100.6,3100.0,0.80633]
[1644948818651,0.00032181,3100.6,3100.1,0.3247537]
[1644948819553,0.00032181,3100.6,3100.2,0.3247537]
[1644948819752,0.00032181,3100.6,3100.3,0.3247537]
[1644948819953,0.00032181,3100.6,3100.4,0.3247537]
[1644948820151,0.00032181,3100.6,3100.5,0.3247537]
[1644948820351,0.80668181,3100.6,3100.0,0.32733048]
[1644948820552,1.04110353,3100.5,3100.0,0.32733048]
[1644948820852,0.80668181,3100.6,3100.5,0.49723606]
[1644948821055,1.04142345,3100.6,3100.5,0.82198976]
[1644948821301,0.00032181,3100.6,3100.5,0.82198976]
[1644948821902,1.04142345,3100.6,3100.5,0.82198976]
[1644948824504,0.80651,3100.3,3099.8,0.00390312]
[1644948824700,7.75652,3100.5,3099.8,0.00390312]
[1644948824701,3.65475593,3100.2,3100.0,0.00257686]
[1644948824945,8.02221095,3100.4,3100.0,0.00257686]
[1644948825145,4.2693,3100.4,3100.0,0.00257686]
[1644948825450,1.61312,3100.2,3100.0,0.00257686]
[1644948825647,0.80656,3100.1,3099.2,0.00390312]
[1644948825844,0.80656,3100.1,3099.0,0.00390312]
[1644948826045,0.80656,3100.1,3100.0,0.00257672]
[1644948826846,0.80656,3100.1,3099.0,0.00390312]
[1644948827047,0.80668,3099.5,3099.0,0.00390312]
[1644948827248,0.80668,3099.4,3099.0,0.00390312]
[1644948828248,0.80668,3099.4,3099.0,0.00648029]
[1644948828905,1.6133572,3099.4,3099.0,0.00648029]
[1644948829305,1.6133572,3099.4,3099.0,0.00390312]
[1644948829503,1.6133572,3099.4,3099.0,0.81313029]
[1644948829702,1.6133572,3099.4,3099.0,0.80922717]
[1644948829904,1.613376,3099.6,3099.1,0.00390312]
[1644948829905,4.0332857,3099.6,3099.1,0.00390312]
[1644948830105,2.4199097,3099.6,3099.1,0.00390312]
[1644948830707,2.78956,3099.7,3099.2,0.00257711]
[1644948830708,1.1762,3099.7,3099.2,0.00257711]
[1644948830908,1.1762,3099.7,3099.2,0.00648023]
[1644948831306,1.1762,3099.7,3099.2,0.00257711]
[1644948831708,1.1762,3099.7,3099.1,0.00390312]
[1644948831908,1.1762,3099.7,3099.3,0.00257708]
[1644948832107,1.1762,3099.7,3099.4,0.80657]
[1644948832309,4.90579,3099.9,3099.3,0.0064802]